fUSD/lending_fUSD_20250502
["ID","MTS","AMOUNT","RATE_DAILY","PERIOD"]
[359639431,1746205842412,-450.0,0.00019758,2]
[359639433,1746205842422,-475.09,0.00019758,2]
[359639435,1746205842433,-391.16393632,0.00019758,2]
[359639436,1746205842443,-450.0,0.00019758,2]
[359639437,1746205842451,-450.0,0.00019758,2]
[359639438,1746205842460,-451.13,0.00019758,2]
[359639439,1746205842470,-450.0,0.00019758,2]
[359639440,1746205842479,-450.0,0.00019758,2]
[359639441,1746205842489,-450.0,0.00019758,2]
[359639442,1746205842499,-450.0,0.00019758,2]
[359639443,1746205842507,-473.06,0.00019758,2]
[359639444,1746205842516,-450.0,0.00019758,2]
[359639445,1746205842525,-450.0,0.00019759,2]
[359639446,1746205842535,-450.0,0.00019759,2]
[359639447,1746205842545,-725.92080834,0.00019759,2]
[359639448,1746205842555,-200.0,0.00019759,2]
[359639449,1746205842564,-450.0,0.00019759,2]
[359639451,1746205842573,-2623.97,0.00019759,2]
[359639452,1746205842582,-1148.16,0.00019759,2]
[359639454,1746205842592,-450.0,0.00019759,2]
[359639456,1746205842601,-500.0,0.00019759,2]
[359639457,1746205842611,-2396.3,0.00019759,2]
[359639459,1746205842621,-450.0,0.00019759,2]
[359639460,1746205842631,-450.00486552,0.00019759,2]
[359639461,1746205842640,-788.21,0.00019759,2]
[359639462,1746205842649,-393.41180054,0.00019759,2]
[359639463,1746205842659,-165.17479431,0.00019759,2]
[359639464,1746205842669,-151.0,0.00019759,2]
[359639465,1746205842679,-450.0,0.00019759,2]
[359639466,1746205842688,-779.07,0.00019759,2]
[359639467,1746205842698,-598.38,0.00019759,2]
[359639468,1746205842708,-500.0,0.0001976,2]
[359639469,1746205842718,-2053.78624841,0.00019765,2]
[359639470,1746205842728,-57231.54245076,0.00019768,2]
[359639471,1746205842738,-185.86498536,0.00019773,2]
[359639472,1746205842748,-2053.78624841,0.00019792,2]
[359639473,1746205842758,-1100.3275435,0.00019799,2]
[359639474,1746205842767,-2053.78624841,0.00019819,2]
[359639475,1746205842777,-177.54001047,0.00019829,2]
[359639476,1746205842787,-500.0,0.00019829,2]
[359639477,1746205842797,-232.13644453,0.00019829,2]
[359639478,1746205842808,-157.76889196,0.00019829,2]
[359639479,1746205842817,-627.43410125,0.00019829,2]
[359639480,1746205842827,-500.0,0.00019829,2]
[359639481,1746205842838,-500.0,0.00019829,2]
[359639482,1746205842847,-500.0,0.00019829,2]
[359639483,1746205842857,-12500.0,0.0001983,2]
[359639484,1746205842868,-12500.0,0.00019838,2]
[359639485,1746205842879,-2000.0,0.00019839,2]
[359639486,1746205842889,-200.0,0.00019839,2]
[359639487,1746205842900,-500.0,0.0001984,2]
[359639488,1746205842911,-2000.0,0.0001984,2]
[359639489,1746205842923,-200.0,0.0001984,2]
[359639490,1746205842937,-1653.43443875,0.00019846,2]
[359639491,1746205843097,-400.35180966,0.00019846,2]
[359639492,1746205843107,-240.14070277,0.00019847,2]
[359639496,1746205843279,-460.02,0.00019757,2]
[359639497,1746205843288,-450.0,0.00019757,2]
[359639499,1746205843298,-7550.97824551,0.00019847,2]
[359639504,1746205843334,-4708.88105172,0.00019847,2]
[359639506,1746205843344,-12500.0,0.00019856,2]
[359639507,1746205843353,-12500.0,0.00019865,2]
[359639509,1746205843363,-2751.712,0.00019865,2]
[359639512,1746205843373,-166.818,0.00019865,2]
[359639514,1746205843383,-2053.78624841,0.00019873,2]
[359639515,1746205843395,-12500.0,0.00019874,2]
[359639517,1746205843405,-12500.0,0.00019882,2]
[359639519,1746205843414,-786.64857208,0.00019885,2]
[359639521,1746205843423,-786.64857206,0.00019886,2]
[359639523,1746205843433,-268.61289915,0.00019886,2]
[359639525,1746205843443,-156.69874575,0.00019886,2]
[359639527,1746205843452,-786.64857206,0.00019886,2]
[359639529,1746205843461,-12500.0,0.00019891,2]
[359639531,1746205843471,-283.66463137,0.00019899,2]
[359639533,1746205843480,-15465.9674899,0.000199,2]
[359639534,1746205843489,-177.05047637,0.000199,2]
[359639536,1746205843499,-1407.6815,0.000199,2]
[359639538,1746205843509,-36233.4817,0.000199,2]
[359639540,1746205843519,-500.0,0.000199,2]
[359639542,1746205843529,-803.9751,0.000199,2]
[359639544,1746205843539,-4000.0,0.000199,2]
[359639546,1746205843548,-12500.0,0.000199,2]
[359639548,1746205843558,-380.31476607,0.000199,2]
[359639550,1746205843567,-2743.91594593,0.000199,2]
[359639552,1746205843576,-1000.0,0.000199,2]
[359639554,1746205843585,-2053.78624841,0.000199,2]
[359639556,1746205843595,-1347.07182384,0.000199,2]
[359639558,1746205843604,-347.31953854,0.000199,2]
[359639560,1746205843613,-253.85973984,0.000199,2]
[359639562,1746205843623,-500.0,0.00019918,2]
[359639564,1746205843633,-151.0,0.0001993,2]
[359639566,1746205843643,-151.0,0.00019931,2]
[359639568,1746205843653,-151.0,0.00019931,2]
[359639570,1746205843662,-151.0,0.00019932,2]
[359639572,1746205843671,-151.0,0.00019933,2]
[359639574,1746205843681,-4001.0,0.00019938,2]
[359639576,1746205843690,-6753.0,0.00019938,2]
[359639578,1746205843699,-153.0,0.00019938,2]
[359639580,1746205843709,-878.0,0.00019938,2]
[359639582,1746205843718,-151.0,0.00019943,2]
[359639584,1746205843728,-207.4,0.00019953,2]
[359639587,1746205843737,-151.0,0.00019954,2]
[359639590,1746205843746,-151.0,0.00019954,2]
[359639593,1746205843756,-668.65185757,0.00019954,2]
[359639596,1746205843766,-200.0,0.00019957,2]
[359639599,1746205843776,-19543.0,0.00019973,2]
[359639602,1746205843785,-500.0,0.00019973,2]
[359639605,1746205843794,-500.0,0.00019973,2]
[359639608,1746205843803,-501.47327578,0.00019973,2]
[359639611,1746205843812,-162.40954813,0.00019973,2]
[359639614,1746205843822,-165.99958587,0.00019973,2]
[359639617,1746205843833,-368.87036061,0.00019973,2]
[359639620,1746205843842,-309.0,0.00019973,2]
[359639623,1746205843852,-505.12152298,0.00019973,2]
[359639626,1746205843861,-501.17158983,0.00019973,2]
[359639629,1746205843871,-500.0,0.00019973,2]
[359639632,1746205843880,-500.0,0.00019973,2]
[359639634,1746205843889,-500.0,0.00019973,2]
[359639636,1746205843899,-500.4284128,0.00019973,2]
[359639638,1746205843908,-500.0,0.00019973,2]
[359639640,1746205843917,-1007.59969745,0.00019976,2]
[359639643,1746205843931,-922.0,0.00019978,2]
[359639645,1746205843941,-1351.397,0.00019978,2]
[359639646,1746205843950,-1149.202,0.00019978,2]
[359639647,1746205843959,-797.0,0.00019978,2]
[359639648,1746205843970,-913.0,0.00019978,2]
[359639649,1746205843979,-416.779,0.00019978,2]
[359639651,1746205843989,-549.0,0.00019978,2]
[359639653,1746205843998,-580.0,0.00019978,2]
[359639655,1746205844008,-155705.11211811,0.00019982,2]
[359639657,1746205844017,-629.2,0.00019985,2]
[359639659,1746205844027,-450.0,0.00019985,2]
[359639661,1746205844036,-450.0,0.00019985,2]
[359639663,1746205844045,-500.0,0.00019985,2]
[359639665,1746205844055,-500.0,0.00019985,2]
[359639667,1746205844064,-861.06,0.00019985,2]
[359639669,1746205844074,-697.21,0.00019985,2]
[359639671,1746205844084,-1953.59,0.00019985,2]
[359639673,1746205844094,-877.79,0.00019985,2]
[359639675,1746205844103,-988.75,0.00019985,2]
[359639677,1746205844113,-450.0,0.00019985,2]
[359639679,1746205844122,-4490.01,0.00019985,2]
[359639681,1746205844132,-1701.0,0.00019985,2]
[359639683,1746205844141,-614.98,0.00019985,2]
[359639685,1746205844151,-5177.91,0.00019985,2]
[359639687,1746205844160,-516.56,0.00019985,2]
[359639689,1746205844170,-4754.44,0.00019985,2]
[359639691,1746205844179,-450.0,0.00019985,2]
[359639693,1746205844188,-592.65,0.00019985,2]
[359639695,1746205844198,-450.0,0.00019985,2]
[359639697,1746205844208,-450.0,0.00019985,2]
[359639699,1746205844217,-5110.32,0.00019985,2]
[359639701,1746205844231,-104625.1,0.00019985,2]
[359639703,1746205844241,-901.44,0.00019985,2]
[359639705,1746205844252,-450.0,0.00019985,2]
[359639707,1746205844262,-5846.73,0.00019985,2]
[359639709,1746205844273,-31579.79,0.00019985,2]
[359639712,1746205844284,-533.09,0.00019985,2]
[359639714,1746205844294,-2031.79,0.00019985,2]
[359639716,1746205844304,-17130.64,0.00019985,2]
[359639718,1746205844314,-1097.2,0.00019985,2]
[359639720,1746205844324,-450.0,0.00019985,2]
[359639722,1746205844334,-461.2,0.00019985,2]
[359639724,1746205844344,-450.0,0.00019985,2]
[359639726,1746205844353,-596.89,0.00019985,2]
[359639728,1746205844363,-1451.0,0.00019986,2]
[359639730,1746205844373,-24292.4313648,0.00019986,2]
[359639732,1746205844383,-7325.6083419,0.00019986,2]
[359639734,1746205844392,-255087.1344102,0.00019986,2]
[359639736,1746205844402,-31453.9481133,0.00019986,2]
[359639738,1746205844412,-4419.2346126,0.00019986,2]
[359639740,1746205844421,-16510.5949336,0.00019986,2]
[359639742,1746205844431,-1007.59969745,0.0001999,2]
[359639744,1746205844441,-1007.59969745,0.0001999,2]
[359639746,1746205844451,-500.0,0.00019999,2]
[359639748,1746205844460,-675.05638042,0.00019999,2]
[359639750,1746205844470,-500.0,0.00019999,2]
[359639752,1746205844480,-300.0,0.00019999,2]
[359639754,1746205844489,-300.0,0.00019999,2]
[359639756,1746205844499,-450.0,0.00019999,2]
[359639758,1746205844510,-450.0,0.00019999,2]
[359639761,1746205844521,-500.0,0.00019999,2]
[359639762,1746205844531,-500.0,0.00019999,2]
[359639764,1746205844540,-500.0,0.00019999,2]
[359639766,1746205844550,-405.21,0.00019999,2]
[359639768,1746205844559,-346.12920957,0.0002,2]
[359639770,1746205844569,-385196.14146259,0.0002,2]
[359639773,1746205844579,-4040297.45526201,0.0002,2]
[359639787,1746205844803,-1435.94837136,0.0002,2]
[359639788,1746205845294,-774.31122105,0.00019723,2]
[359639789,1746205845306,-3203.1450476,0.00019723,2]
[359639790,1746205845316,-450.0,0.00019757,2]
[359639791,1746205845326,-450.0,0.00019757,2]
[359639792,1746205845338,-1235.677,0.00019938,2]
[359639793,1746205845350,-66339.52235319,0.0002,2]
[359639794,1746205845380,3021.47,0.00018867,2]
[359639803,1746205845591,-3889.93642,0.00019749,2]
[359639804,1746205845603,-87.51984865,0.00019749,2]
[359639805,1746205845613,-151.0,0.0001993,2]
[359639806,1746205845622,-111.48015135,0.00019973,2]
[359639807,1746205845801,-51.76624662,0.00019973,2]
[359639808,1746205845811,-295.05885041,0.00019985,2]
[359639809,1746205845821,-4715.41890297,0.0002,2]
[359639810,1746205845835,-620.124018,0.0002,2]
[359639827,1746205846359,-916.83806527,0.0002,2]
[359639828,1746205846370,-1753.70282576,0.0002,2]
[359639829,1746205846382,-39699.64525605,0.0002,2]
[359639830,1746205846394,-5995.50257779,0.0002,2]
[359639831,1746205846407,-6063.71154672,0.0002,2]
[359639832,1746205846418,-7558.41776409,0.0002,2]
[359639833,1746205846429,-1164.00608359,0.0002,2]
[359639834,1746205846440,-1142.48127422,0.0002,2]
[359639835,1746205915551,2254.14,0.00018993,2]
[359639836,1746205981964,163.022522,0.00019419,2]
[359639837,1746206126001,250.0,0.0001885,7]
[359639838,1746206132661,250.0,0.0001885,2]
[359639839,1746206289728,175.0,0.00015,2]
[359639840,1746206312072,194.56,0.00027425,30]
[359639841,1746206519721,151.24,0.00018807,2]
[359639842,1746206520167,151.24,0.00025076,120]
[359639843,1746206520408,151.24,0.0002821,120]
[359639844,1746206524085,155.09,0.00018807,2]
[359639845,1746206531800,389.93793726,0.000195,2]
[359639846,1746206566959,2194.0,0.00032877,60]
[359639847,1746206623102,1028.06,0.00016899,2]
[359639848,1746206623305,1028.06,0.00019163,2]
[359639849,1746206708162,508.33,0.000311,120]
[359639850,1746206708530,508.33,0.000314,120]
[359639851,1746206708848,508.33,0.000317,120]
[359639852,1746206709337,508.33,0.00032,120]
[359639853,1746206709628,508.33,0.000324,120]
[359639854,1746206709884,508.33,0.000327,120]
[359639855,1746206782830,1474.98768708,0.000209,30]
[359639856,1746206788950,156.54,0.00018734,2]
[359639857,1746206808533,250.0,0.00017,2]
[359639858,1746206809288,300.0,0.00019,2]
[359639859,1746206904373,1000.0,0.00018734,2]
[359639865,1746206978289,200.0,0.00018751,2]
[359639878,1746207031814,-179.37,0.00019517,2]
[359639879,1746207031824,-250.0,0.00019523,2]
[359639881,1746207031834,-867.06825137,0.00019556,2]
[359639882,1746207031844,-151.92906657,0.00019566,2]
[359639883,1746207031874,-48.07093343,0.00019566,2]
[359639884,1746207031884,-5827.9375,0.00019573,2]
[359639885,1746207031894,-200.0,0.00019615,2]
[359639886,1746207031915,-200.0,0.00019615,2]
[359639887,1746207031925,-1200.0,0.00019634,2]
[359639888,1746207031936,-993.49490627,0.00019635,2]
[359639889,1746207031947,-300.0,0.00019655,2]
[359639890,1746207032055,-222.83168776,0.00019656,2]
[359639891,1746207032066,-3463.08707873,0.00019656,2]
[359639892,1746207032077,-11869.57789381,0.00019657,2]
[359639893,1746207032101,-411.64114999,0.00019657,2]
[359639894,1746207032113,-4133.9150562,0.00019657,2]
[359639895,1746207032123,-264.0592,0.00019657,2]
[359639896,1746207032133,-500.0,0.00019657,2]
[359639897,1746207032143,-476.7944,0.00019657,2]
[359639898,1746207032152,-803.9751,0.00019657,2]
[359639899,1746207032162,-6447.6405,0.00019657,2]
[359639900,1746207032172,-4000.0,0.00019657,2]
[359639901,1746207032181,-993.49490625,0.00019664,2]
[359639902,1746207032191,-498.96710646,0.00019672,2]
[359639903,1746207032200,-2952.3920756,0.00019673,2]
[359639904,1746207032212,-452.3697946,0.00019673,2]
[359639908,1746207032237,-1330.51003076,0.00019673,2]
[359639943,1746207037804,-48792.84498819,0.00019673,2]
[359639958,1746207039950,-51656.35204448,0.00019673,2]
[359639959,1746207039959,-3463.08707866,0.00019683,2]
[359639960,1746207039969,-993.49490625,0.00019694,2]
[359639961,1746207039978,-3463.08707866,0.0001971,2]
[359639962,1746207039997,-993.49490625,0.00019723,2]
[359639963,1746207040009,-3463.08707866,0.00019737,2]
[359639964,1746207040018,-3548.15343232,0.0001975,2]
[359639965,1746207040076,-21020.67947307,0.0001975,2]
[359639966,1746207040086,-993.49490625,0.00019753,2]
[359639967,1746207040096,-450.0,0.00019755,2]
[359639968,1746207040106,-959.76,0.00019755,2]
[359639969,1746207040115,-450.0,0.00019755,2]
[359639970,1746207040125,-450.0,0.00019755,2]
[359639971,1746207040134,-450.0,0.00019755,2]
[359639972,1746207040144,-500.0,0.00019755,2]
[359639973,1746207040154,-162.49551117,0.00019755,2]
[359639974,1746207040168,-500.0,0.00019755,2]
[359639975,1746207040177,-500.0,0.00019755,2]
[359639976,1746207040187,-339.20387087,0.00019755,2]
[359639977,1746207040197,-450.0,0.00019755,2]
[359639978,1746207040206,-450.0,0.00019755,2]
[359639979,1746207040216,-561.63,0.00019755,2]
[359639980,1746207040226,-412.38084859,0.00019755,2]
[359639981,1746207040236,-556.55,0.00019755,2]
[359639982,1746207040246,-450.0,0.00019755,2]
[359639983,1746207040255,-450.0,0.00019755,2]
[359639984,1746207040266,-584.59,0.00019755,2]
[359639985,1746207040275,-700.67,0.00019755,2]
[359639986,1746207040285,-450.0,0.00019755,2]
[359639987,1746207040295,-450.0,0.00019755,2]
[359639988,1746207040305,-450.0,0.00019755,2]
[359639989,1746207040316,-450.0,0.00019755,2]
[359639990,1746207040330,-450.0,0.00019755,2]
[359639991,1746207040339,-546.86,0.00019755,2]
[359639992,1746207040349,-6141.2,0.00019755,2]
[359639993,1746207040359,-642.55,0.00019755,2]
[359639994,1746207040368,-450.0,0.00019755,2]
[359639995,1746207040378,-1396.83,0.00019755,2]
[359639996,1746207040388,-1246.01,0.00019755,2]
[359639997,1746207040398,-568.19,0.00019755,2]
[359639998,1746207040409,-450.0,0.00019755,2]
[359639999,1746207040424,-280.25488685,0.00019755,2]
[359640000,1746207040433,-450.0,0.00019755,2]
[359640001,1746207040443,-450.0,0.00019755,2]
[359640002,1746207040453,-450.0,0.00019755,2]
[359640003,1746207040463,-450.0,0.00019755,2]
[359640004,1746207040473,-450.0,0.00019755,2]
[359640005,1746207040482,-450.0,0.00019755,2]
[359640006,1746207040491,-609.176484,0.00019755,2]
[359640007,1746207040501,-450.0,0.00019755,2]
[359640008,1746207040510,-450.0,0.00019755,2]
[359640009,1746207040519,-450.0,0.00019755,2]
[359640010,1746207040528,-450.0,0.00019755,2]
[359640011,1746207040538,-450.0,0.00019755,2]
[359640012,1746207040551,-450.0,0.00019755,2]
[359640013,1746207040562,-450.0,0.00019755,2]
[359640014,1746207040571,-450.0,0.00019756,2]
[359640015,1746207040580,-450.0,0.00019756,2]
[359640016,1746207040590,-450.0,0.00019756,2]
[359640017,1746207040600,-250.0,0.00019756,2]
[359640018,1746207040609,-450.0,0.00019756,2]
[359640019,1746207040619,-450.0,0.00019756,2]
[359640020,1746207040628,-450.0,0.00019756,2]
[359640021,1746207040819,-500.0,0.00019756,2]
[359640022,1746207040832,-450.0,0.00019756,2]
[359640023,1746207040841,-450.0,0.00019756,2]
[359640024,1746207040850,-2761.53,0.00019756,2]
[359640025,1746207040859,-450.0,0.00019756,2]
[359640026,1746207040869,-450.0,0.00019756,2]
[359640027,1746207040879,-567.67,0.00019756,2]
[359640028,1746207040889,-450.0,0.00019756,2]
[359640029,1746207040898,-450.0,0.00019756,2]
[359640030,1746207040908,-450.0,0.00019756,2]
[359640031,1746207040918,-450.0,0.00019756,2]
[359640032,1746207040927,-795.803446,0.00019756,2]
[359640033,1746207040937,-450.0,0.00019756,2]
[359640034,1746207040947,-450.0,0.00019756,2]
[359640035,1746207040956,-450.0,0.00019756,2]
[359640036,1746207040966,-450.0,0.00019756,2]
[359640037,1746207040975,-450.0,0.00019756,2]
[359640038,1746207040984,-450.0,0.00019756,2]
[359640039,1746207040994,-507.65,0.00019756,2]
[359640040,1746207041004,-450.0,0.00019756,2]
[359640041,1746207041013,-450.0,0.00019756,2]
[359640042,1746207041023,-450.0,0.00019756,2]
[359640043,1746207041032,-450.0,0.00019756,2]
[359640044,1746207041042,-450.0,0.00019756,2]
[359640045,1746207041052,-450.0,0.00019756,2]
[359640046,1746207041062,-450.0,0.00019756,2]
[359640047,1746207041072,-450.0,0.00019756,2]
[359640048,1746207041081,-450.0,0.00019756,2]
[359640049,1746207041093,-502.31,0.00019756,2]
[359640050,1746207041103,-450.0,0.00019756,2]
[359640051,1746207041112,-450.0,0.00019756,2]
[359640052,1746207041121,-450.0,0.00019756,2]
[359640053,1746207041131,-450.0,0.00019756,2]
[359640054,1746207041140,-450.0,0.00019756,2]
[359640055,1746207041150,-450.0,0.00019756,2]
[359640056,1746207041159,-450.0,0.00019756,2]
[359640057,1746207041169,-450.0,0.00019756,2]
[359640058,1746207041178,-450.0,0.00019756,2]
[359640059,1746207041188,-450.0,0.00019756,2]
[359640060,1746207041197,-450.0,0.00019756,2]
[359640061,1746207041207,-450.0,0.00019756,2]
[359640062,1746207041217,-450.0,0.00019756,2]
[359640063,1746207041226,-450.0,0.00019756,2]
[359640064,1746207041236,-450.0,0.00019756,2]
[359640065,1746207041246,-825.78,0.00019756,2]
[359640066,1746207041255,-450.0,0.00019756,2]
[359640067,1746207041265,-450.0,0.00019756,2]
[359640068,1746207041275,-450.0,0.00019756,2]
[359640069,1746207041284,-450.0,0.00019756,2]
[359640070,1746207041294,-450.0,0.00019756,2]
[359640071,1746207041303,-450.0,0.00019756,2]
[359640072,1746207041313,-450.0,0.00019756,2]
[359640073,1746207041327,-450.0,0.00019756,2]
[359640074,1746207041336,-450.0,0.00019756,2]
[359640075,1746207041346,-575.43,0.00019756,2]
[359640076,1746207041355,-450.0,0.00019756,2]
[359640077,1746207041366,-450.0,0.00019756,2]
[359640078,1746207041375,-450.0,0.00019756,2]
[359640079,1746207041385,-450.0,0.00019756,2]
[359640080,1746207041395,-451.46,0.00019756,2]
[359640081,1746207041404,-450.0,0.00019756,2]
[359640082,1746207041414,-450.0,0.00019756,2]
[359640083,1746207041424,-450.0,0.00019756,2]
[359640084,1746207041433,-450.0,0.00019756,2]
[359640085,1746207041443,-450.0,0.00019756,2]
[359640086,1746207041452,-450.0,0.00019756,2]
[359640087,1746207041461,-450.0,0.00019756,2]
[359640088,1746207041471,-450.0,0.00019756,2]
[359640089,1746207041480,-450.0,0.00019756,2]
[359640090,1746207041490,-450.0,0.00019756,2]
[359640091,1746207041499,-450.0,0.00019756,2]
[359640092,1746207041510,-450.0,0.00019756,2]
[359640093,1746207041519,-450.0,0.00019756,2]
[359640094,1746207041529,-1166.98,0.00019756,2]
[359640095,1746207041539,-450.0,0.00019756,2]
[359640096,1746207041548,-450.0,0.00019756,2]
[359640097,1746207041557,-450.0,0.00019756,2]
[359640098,1746207041567,-450.0,0.00019756,2]
[359640099,1746207041577,-450.0,0.00019756,2]
[359640100,1746207041588,-450.0,0.00019756,2]
[359640101,1746207041598,-737.39,0.00019756,2]
[359640102,1746207041607,-302.32396757,0.00019756,2]
[359640103,1746207041616,-523.33,0.00019756,2]
[359640104,1746207041626,-450.0,0.00019756,2]
[359640105,1746207041635,-556.54,0.00019756,2]
[359640106,1746207041644,-876.93,0.00019756,2]
[359640107,1746207041654,-450.0,0.00019756,2]
[359640108,1746207041664,-450.0,0.00019756,2]
[359640109,1746207041674,-450.0,0.00019756,2]
[359640110,1746207041684,-600.48,0.00019756,2]
[359640111,1746207041694,-450.0,0.00019756,2]
[359640112,1746207041704,-547.33,0.00019756,2]
[359640113,1746207041713,-450.0,0.00019756,2]
[359640114,1746207041722,-481.16,0.00019756,2]
[359640115,1746207041732,-450.0,0.00019756,2]
[359640116,1746207041741,-450.0,0.00019756,2]
[359640117,1746207041750,-517.36,0.00019756,2]
[359640118,1746207041760,-554.09941886,0.00019756,2]
[359640119,1746207041769,-450.0,0.00019756,2]
[359640120,1746207041778,-450.0,0.00019756,2]
[359640121,1746207041788,-505.74,0.00019756,2]
[359640122,1746207041797,-450.0,0.00019756,2]
[359640123,1746207041807,-450.0,0.00019756,2]
[359640124,1746207041819,-549.86,0.00019756,2]
[359640125,1746207041828,-450.0,0.00019756,2]
[359640126,1746207041838,-450.0,0.00019756,2]
[359640127,1746207041847,-570.57214443,0.00019756,2]
[359640128,1746207041856,-450.0,0.00019756,2]
[359640129,1746207041866,-450.0,0.00019756,2]
[359640130,1746207041876,-561.21,0.00019756,2]
[359640131,1746207041886,-450.0,0.00019756,2]
[359640132,1746207041896,-450.0,0.00019756,2]
[359640133,1746207041905,-450.0,0.00019756,2]
[359640134,1746207041914,-450.0,0.00019756,2]
[359640135,1746207041924,-491.15,0.00019756,2]
[359640136,1746207041934,-450.0,0.00019756,2]
[359640137,1746207041943,-506.72,0.00019756,2]
[359640138,1746207041953,-559.57,0.00019756,2]
[359640139,1746207041963,-450.0,0.00019756,2]
[359640140,1746207041972,-450.0,0.00019756,2]
[359640141,1746207041982,-450.0,0.00019756,2]
[359640142,1746207041992,-450.0,0.00019756,2]
[359640143,1746207042002,-450.0,0.00019756,2]
[359640144,1746207042011,-450.0,0.00019756,2]
[359640145,1746207042021,-450.0,0.00019756,2]
[359640146,1746207042031,-450.0,0.00019756,2]
[359640147,1746207042040,-450.0,0.00019756,2]
[359640148,1746207042050,-450.0,0.00019756,2]
[359640149,1746207042060,-450.0,0.00019756,2]
[359640150,1746207042070,-450.0,0.00019756,2]
[359640151,1746207042080,-450.0,0.00019756,2]
[359640152,1746207042090,-450.0,0.00019756,2]
[359640153,1746207042100,-450.0,0.00019756,2]
[359640154,1746207042110,-450.0,0.00019756,2]
[359640155,1746207042120,-450.0,0.00019756,2]
[359640156,1746207042129,-500.55,0.00019756,2]
[359640157,1746207042139,-450.0,0.00019756,2]
[359640158,1746207042149,-3508.32,0.00019756,2]
[359640159,1746207042158,-450.0,0.00019756,2]
[359640160,1746207042168,-450.0,0.00019756,2]
[359640161,1746207042178,-450.0,0.00019756,2]
[359640162,1746207042187,-282.44482249,0.00019756,2]
[359640163,1746207042197,-450.0,0.00019756,2]
[359640164,1746207042207,-450.0,0.00019756,2]
[359640165,1746207042216,-492.21,0.00019756,2]
[359640166,1746207042227,-861.06,0.00019756,2]
[359640167,1746207042236,-450.0,0.00019756,2]
[359640168,1746207042245,-450.0,0.00019756,2]
[359640169,1746207042255,-450.0,0.00019756,2]
[359640170,1746207042265,-2150.38,0.00019756,2]
[359640171,1746207042275,-1953.59,0.00019756,2]
[359640172,1746207042284,-668.15,0.00019756,2]
[359640173,1746207042294,-450.0,0.00019756,2]
[359640174,1746207042304,-480.74,0.00019756,2]
[359640175,1746207042313,-689.75,0.00019756,2]
[359640176,1746207042326,-450.0,0.00019756,2]
[359640177,1746207042335,-657.75,0.00019756,2]
[359640178,1746207042345,-226.52449439,0.00019756,2]
[359640179,1746207042354,-877.79,0.00019756,2]
[359640180,1746207042365,-450.0,0.00019756,2]
[359640181,1746207042374,-450.0,0.00019756,2]
[359640182,1746207042384,-1166.24,0.00019756,2]
[359640183,1746207042394,-988.75,0.00019756,2]
[359640184,1746207042403,-450.0,0.00019756,2]
[359640185,1746207042413,-450.0,0.00019756,2]
[359640186,1746207042423,-450.0,0.00019756,2]
[359640187,1746207042432,-450.0,0.00019756,2]
[359640188,1746207042443,-450.0,0.00019756,2]
[359640189,1746207042452,-450.0,0.00019756,2]
[359640190,1746207042462,-1701.0,0.00019756,2]
[359640191,1746207042471,-450.0,0.00019756,2]